bitfinex-derivatives/quotes_BTCF0:USTF0_20250609
["timestamp","ask_amount","ask_price","bid_price","bid_amount"]
[1749464703908,0.00014027,107180.0,107170.0,1.37563793]
[1749464704117,0.00014027,107180.0,107170.0,1.95973738]
[1749464704314,0.00014027,107180.0,107170.0,2.42157398]
[1749464705115,0.11442027,107180.0,107170.0,2.42157398]
[1749464705316,0.11442027,107180.0,107170.0,2.42757398]
[1749464705518,0.11442027,107180.0,107170.0,2.05904272]
[1749464705823,0.11742027,107180.0,107170.0,2.05904272]
[1749464706624,0.11442027,107180.0,107170.0,1.81304272]
[1749464707326,0.09928251,107180.0,107170.0,1.81304272]
[1749464707520,0.09928251,107180.0,107170.0,1.87582665]
[1749464707720,0.09928251,107180.0,107170.0,1.87682665]
[1749464708219,1.59928251,107180.0,107170.0,1.48882665]
[1749464708425,1.97978251,107180.0,107170.0,1.2049986]
[1749464708823,1.97978251,107180.0,107170.0,1.2029986]
[1749464710025,1.97978251,107180.0,107170.0,1.1989986]
[1749464710227,1.97978251,107180.0,107170.0,1.1969986]
[1749464710729,1.97978251,107180.0,107170.0,1.1959986]
[1749464711128,2.25406,107180.0,107170.0,1.1959986]
[1749464711428,2.44346,107180.0,107170.0,1.1959986]
[1749464714615,2.86614,107180.0,107170.0,1.47982665]
[1749464715125,1.36614,107180.0,107170.0,1.47982665]
[1749464715330,1.49297793,107180.0,107170.0,1.1959986]
[1749464715827,1.49297793,107180.0,107170.0,0.8351986]
[1749464716231,1.36614,107180.0,107170.0,1.1959986]
[1749464716528,1.36714,107180.0,107170.0,1.1959986]
[1749464716729,1.36714,107180.0,107170.0,0.8341986]
[1749464717116,1.36714,107180.0,107170.0,1.1949986]
[1749464719037,0.79818,107180.0,107170.0,1.1949986]
[1749464719241,0.42408,107180.0,107170.0,1.1949986]
[1749464719421,0.00024875,107190.0,107170.0,2.11270479]
[1749464719735,0.13076875,107190.0,107180.0,1.35513374]
[1749464719933,0.00024875,107190.0,107180.0,1.67506652]
[1749464720133,0.13076875,107190.0,107180.0,2.0145034]
[1749464720328,0.13116875,107190.0,107180.0,1.72937481]
[1749464720520,0.3831,107210.0,107200.0,0.001]
[1749464720521,0.1893,107210.0,107200.0,0.001]
[1749464720721,0.8049,107210.0,107200.0,1.73956713]
[1749464721025,0.8049,107210.0,107200.0,1.98528808]
[1749464721235,0.8057,107210.0,107200.0,2.33074678]
[1749464721528,0.8053,107210.0,107200.0,2.33484129]
[1749464721729,1.0013,107210.0,107200.0,2.03904742]
[1749464722327,1.0013,107210.0,107200.0,1.84954742]
[1749464722530,1.0013,107210.0,107200.0,1.65904742]
[1749464722733,1.0013,107210.0,107200.0,2.02917662]
[1749464722937,1.0013,107210.0,107200.0,2.03117662]
[1749464723133,1.0013,107210.0,107200.0,2.02817662]
[1749464723428,1.12813793,107210.0,107200.0,1.30657662]
[1749464723630,1.30973793,107210.0,107200.0,1.95197675]
[1749464723828,1.30973793,107210.0,107200.0,1.57984755]
[1749464724228,1.30973793,107210.0,107200.0,1.29524742]
[1749464724624,1.1829,107210.0,107200.0,1.29524742]
[1749464724829,1.31173793,107210.0,107200.0,1.29524742]
[1749464725023,1.18746,107210.0,107200.0,1.29524742]
[1749464725925,1.18846,107210.0,107200.0,1.29424742]
[1749464726327,0.0466176,107200.0,107180.0,0.22131184]
[1749464726533,0.79849793,107190.0,107180.0,0.24131184]
[1749464726732,1.15929793,107190.0,107180.0,0.24667445]
[1749464726933,0.99769793,107190.0,107180.0,0.82939798]
[1749464727330,0.99769793,107190.0,107180.0,0.99084855]
[1749464727530,0.99769793,107190.0,107180.0,0.99184855]
[1749464727731,1.18417773,107190.0,107180.0,0.63104855]
[1749464727933,0.99769793,107190.0,107180.0,0.83054309]
[1749464728437,1.54497773,107190.0,107180.0,0.83154309]
[1749464728933,1.54497773,107190.0,107180.0,0.80814309]
[1749464729135,1.54497773,107190.0,107180.0,0.60864855]
[1749464729331,1.54597773,107190.0,107180.0,0.60764855]
[1749464729526,1.63927373,107190.0,107180.0,0.79605944]
[1749464729742,1.63927373,107190.0,107180.0,0.79505944]
[1749464730028,0.1864972,107180.0,107170.0,1e-08]
[1749464730232,0.1865383,107160.0,107140.0,0.6501292]
[1749464730535,0.97337373,107150.0,107140.0,1.02294655]
[1749464730838,0.97337373,107150.0,107140.0,1.11524318]
[1749464731033,0.97337373,107150.0,107140.0,0.74522698]
[1749464731431,1.15992313,107150.0,107140.0,0.74522698]
[1749464731630,1.15992313,107150.0,107140.0,0.74822698]
[1749464731930,1.15992313,107150.0,107140.0,0.84822698]
[1749464732540,1.15992313,107150.0,107140.0,0.74822698]
[1749464732541,0.97337373,107150.0,107140.0,0.74822698]
[1749464733029,1.2269636,107160.0,107140.0,0.94779381]
[1749464733030,0.91358027,107160.0,107140.0,0.94779381]
[1749464733234,0.62896,107150.0,107140.0,1.20095588]
[1749464733635,0.62896,107150.0,107140.0,1.48893713]
[1749464734034,1.15438027,107160.0,107150.0,0.1]
[1749464734230,1.78322027,107160.0,107150.0,0.9839]
[1749464734432,1.78322027,107160.0,107150.0,1.33139006]
[1749464734633,1.60062027,107160.0,107150.0,1.42472152]
[1749464735434,1.60062027,107160.0,107150.0,1.32472152]
[1749464735635,1.60062027,107160.0,107150.0,1.32572152]
[1749464736237,1.60062027,107160.0,107150.0,1.42572152]
[1749464736441,1.78812027,107160.0,107150.0,1.42672152]
[1749464736831,1.78812027,107160.0,107150.0,1.23522152]
[1749464737035,2.33545227,107160.0,107150.0,0.86282152]
[1749464737532,2.14892027,107160.0,107150.0,0.86282152]
[1749464737940,2.2757582,107160.0,107150.0,0.86282152]
[1749464738443,2.6856102,107160.0,107150.0,0.86282152]
[1749464738636,2.6856102,107160.0,107150.0,0.75557345]
[1749464740033,2.4990782,107160.0,107150.0,0.75557345]
[1749464740438,2.6856102,107160.0,107150.0,0.75557345]
[1749464740639,2.6856102,107160.0,107150.0,0.95497113]
[1749464741239,2.6856102,107160.0,107150.0,0.75557345]
[1749464741848,2.6856102,107160.0,107150.0,0.65557345]
[1749464742734,2.55877227,107160.0,107150.0,0.65557345]
[1749464743050,2.6856102,107160.0,107150.0,0.79789591]
[1749464743542,2.55877227,107160.0,107150.0,0.79789591]
[1749464743748,2.6856102,107160.0,107150.0,0.79789591]
[1749464744755,2.27892027,107160.0,107150.0,0.79789591]
[1749464745050,2.14892027,107160.0,107150.0,0.79789591]
[1749464745348,2.14892027,107160.0,107150.0,1.04837345]
[1749464745538,2.14852027,107160.0,107150.0,1.04837345]
[1749464745735,2.14892027,107160.0,107150.0,1.04837345]
[1749464747355,2.4622905,107160.0,107150.0,0.65557345]
[1749464747650,2.8056105,107160.0,107150.0,0.65557345]
[1749464748954,2.8056105,107160.0,107150.0,0.65457345]
[1749464748955,2.2783582,107160.0,107150.0,0.65457345]
[1749464749153,2.2787582,107160.0,107150.0,1.03257345]
[1749464749451,2.2783582,107160.0,107150.0,1.03257345]
[1749464749651,2.4658903,107160.0,107150.0,1.03257345]
[1749464749851,2.2793582,107160.0,107150.0,1.03257345]
[1749464750049,2.4698903,107160.0,107150.0,1.03157345]
[1749464750351,2.4702903,107160.0,107150.0,1.21847345]
[1749464750551,2.4662903,107160.0,107150.0,1.41787113]
[1749464750754,2.4692903,107160.0,107150.0,1.42192773]
[1749464750943,2.2814904,107160.0,107150.0,1.42192773]
[1749464751343,1.4641504,107160.0,107150.0,1.42192773]
[1749464751548,1.9072582,107160.0,107150.0,1.56421025]
[1749464751751,1.15078027,107160.0,107150.0,1.56421025]
[1749464751953,1.78002027,107160.0,107150.0,1.42192773]
[1749464752154,1.78042027,107160.0,107150.0,1.42192773]
[1749464752452,1.15078027,107160.0,107150.0,1.42192773]
[1749464752647,1.78018027,107160.0,107150.0,1.22253005]
[1749464752848,1.78018027,107160.0,107150.0,1.42192773]
[1749464754159,1.96671267,107160.0,107150.0,1.42192773]
[1749464754855,1.96671267,107160.0,107150.0,1.22253005]
[1749464755354,1.78018027,107160.0,107150.0,1.22253005]
[1749464756762,1.56171214,107160.0,107150.0,1.22253005]
[1749464757255,1.56171214,107160.0,107150.0,1.5075113]
[1749464758463,1.56171214,107160.0,107150.0,1.22253005]
[1749464758464,1.68855007,107160.0,107150.0,1.22253005]
[1749464758662,1.68815007,107160.0,107150.0,1.22253005]
[1749464758870,1.96700237,107160.0,107150.0,0.76287262]
[1749464759060,1.84016444,107160.0,107150.0,1.42773325]
[1749464759260,1.87368237,107160.0,107150.0,1.42773325]
[1749464759460,1.87368237,107160.0,107150.0,1.22743005]
[1749464761564,1.85853424,107160.0,107150.0,1.22743005]
[1749464761961,1.85853424,107160.0,107150.0,1.5124113]
[1749464762363,2.23203424,107160.0,107150.0,1.5124113]
[1749464762765,2.23203424,107160.0,107150.0,1.50627359]
[1749464763175,2.10519631,107160.0,107150.0,1.50627359]
[1749464763471,2.23203424,107160.0,107150.0,1.50627359]
[1749464764373,2.10519631,107160.0,107150.0,1.50627359]
[1749464764869,2.23203424,107160.0,107150.0,1.50627359]
[1749464765372,2.57535424,107160.0,107150.0,0.29545883]
[1749464765578,0.1865672,107140.0,107130.0,0.45088574]
[1749464765767,1.66404513,107140.0,107130.0,0.795]
[1749464765968,1.66404513,107140.0,107130.0,1.02780718]
[1749464766168,2.03934513,107140.0,107130.0,1.02780718]
[1749464766670,2.03934513,107140.0,107130.0,0.64287278]
[1749464766868,2.16924513,107140.0,107130.0,0.64387278]
[1749464767282,2.0424072,107140.0,107130.0,0.64387278]
[1749464767475,2.03934513,107140.0,107130.0,0.64387278]
[1749464767878,2.32594513,107140.0,107130.0,0.64387278]
[1749464768379,2.41928914,107140.0,107130.0,0.64387278]
[1749464768679,2.1991072,107140.0,107130.0,0.54387278]
[1749464768980,2.32594513,107140.0,107130.0,0.54387278]
[1749464769278,2.32594513,107140.0,107130.0,0.54287278]
[1749464769479,2.42228914,107140.0,107130.0,0.54287278]
[1749464769778,2.32894513,107140.0,107130.0,0.54287278]
[1749464770168,2.32894513,107140.0,107130.0,0.74335963]
[1749464771174,2.2021072,107140.0,107130.0,0.74335963]
[1749464771375,2.42228914,107140.0,107130.0,0.74335963]
[1749464772679,2.42228914,107140.0,107130.0,0.54287278]
[1749464774373,2.29545121,107140.0,107130.0,0.6858567]
[1749464774575,1.0112,107140.0,107130.0,0.6858567]
[1749464774878,1.95264513,107140.0,107130.0,0.91837278]
[1749464775968,1.63888,107140.0,107130.0,0.91837278]
[1749464776174,1.63908,107140.0,107130.0,1.11885963]
[1749464776477,1.8260472,107140.0,107130.0,1.11885963]
[1749464776675,1.8260072,107140.0,107130.0,1.11885963]
[1749464777580,1.63844,107140.0,107130.0,1.11885963]
[1749464777782,1.8250072,107140.0,107130.0,1.11885963]
[1749464778178,1.8250072,107140.0,107130.0,0.91837278]
[1749464778383,1.93733788,107140.0,107130.0,0.5462769]
[1749464778575,2.13613788,107140.0,107130.0,0.5462769]
[1749464778774,2.13613788,107140.0,107130.0,0.40338835]
[1749464778975,2.13613788,107140.0,107130.0,0.6038752]
[1749464779180,2.13513788,107140.0,107130.0,0.6038752]
[1749464779783,2.13513788,107140.0,107130.0,0.74678577]
[1749464779979,2.13513788,107140.0,107130.0,0.54629892]
[1749464780181,2.13513788,107140.0,107130.0,0.55035552]
[1749464780888,2.00829995,107140.0,107130.0,0.55035552]
[1749464781088,2.13513788,107140.0,107130.0,0.55035552]
[1749464781887,2.13513788,107140.0,107130.0,0.55032036]
[1749464782985,2.13513788,107140.0,107130.0,0.40744495]
[1749464783488,2.13513788,107140.0,107130.0,0.55032851]
[1749464784096,0.1865846,107130.0,107120.0,0.20062712]
[1749464784282,1.04612991,107130.0,107120.0,0.51343371]
[1749464784483,1.26928191,107130.0,107120.0,0.30014027]
[1749464784689,1.26928191,107130.0,107120.0,0.39348044]
[1749464785088,1.22928191,107130.0,107120.0,0.39355053]
[1749464785791,1.22928191,107130.0,107120.0,0.59403738]
[1749464785992,1.22928191,107130.0,107120.0,0.60680948]
[1749464786190,1.22928191,107130.0,107120.0,0.40632263]
[1749464786487,1.23028191,107130.0,107120.0,0.39355053]
[1749464787394,1.23428191,107130.0,107120.0,0.39355053]
[1749464788792,1.86000191,107130.0,107120.0,0.39355053]
[1749464789102,1.86500191,107130.0,107120.0,0.39355053]
[1749464789287,1.87100191,107130.0,107120.0,0.39355053]
[1749464789598,1.98450993,107130.0,107090.0,0.7361998]
[1749464789799,0.67427473,107100.0,107090.0,1.1524998]
[1749464789992,1.70791915,107100.0,107090.0,0.86592709]
[1749464790295,1.70791915,107100.0,107090.0,0.95927598]
[1749464790592,1.70800175,107100.0,107090.0,0.95927598]
[1749464790792,1.70800175,107100.0,107090.0,0.9593606]
[1749464791100,1.70800175,107100.0,107090.0,0.7696606]
[1749464791101,1.92821568,107100.0,107090.0,0.7696606]
[1749464791298,2.22034972,107100.0,107090.0,0.40625058]
[1749464791797,1.46771179,107100.0,107090.0,0.40630134]
[1749464792000,2.21838972,107100.0,107090.0,0.39343351]
[1749464792199,2.19438972,107100.0,107090.0,0.40630802]
[1749464792394,2.19438972,107100.0,107090.0,0.40632626]
[1749464792395,1.57054972,107100.0,107090.0,0.40632626]
[1749464792600,2.19462972,107100.0,107090.0,0.40633287]
[1749464792803,2.19462972,107100.0,107090.0,0.39343351]
[1749464793003,2.19662972,107100.0,107090.0,0.40633361]
[1749464793193,2.19662972,107100.0,107090.0,0.54943013]
[1749464793703,2.19662972,107100.0,107090.0,0.54965029]
[1749464793902,2.19662972,107100.0,107090.0,0.53653003]
[1749464794308,0.1866542,107090.0,107080.0,0.20195429]
[1749464794604,1.04693184,107090.0,107080.0,0.54195429]
[1749464794809,1.04693184,107090.0,107080.0,0.63532933]
[1749464794810,1.14031584,107090.0,107080.0,0.63532933]
[1749464795001,1.21460456,107090.0,107080.0,0.63532933]
[1749464795204,1.34440456,107090.0,107080.0,0.635399]
[1749464795702,1.33788938,107090.0,107080.0,0.62888315]
[1749464796396,1.33888938,107090.0,107080.0,0.62888315]
[1749464796793,1.33888938,107090.0,107080.0,0.58224281]
[1749464796996,1.33888938,107090.0,107080.0,0.4430929]
[1749464797193,1.57632938,107090.0,107080.0,0.34504256]
[1749464797392,1.57672938,107090.0,107080.0,0.63319222]
[1749464797592,1.57672938,107090.0,107080.0,0.79894471]
[1749464797797,0.95148938,107090.0,107080.0,0.75230437]
[1749464797999,1.15229873,107090.0,107080.0,0.66009403]
[1749464798205,1.15229873,107090.0,107080.0,0.70695779]
[1749464798503,1.27889666,107090.0,107080.0,0.61532745]
[1749464798710,1.27929666,107090.0,107080.0,0.52203309]
[1749464798901,1.27929666,107090.0,107080.0,0.47538591]
[1749464799103,0.74740066,107090.0,107080.0,0.31416182]
[1749464799304,1.90964066,107090.0,107080.0,0.14542182]
[1749464799510,1.71274066,107090.0,107080.0,0.36684255]
[1749464799706,1.58590273,107090.0,107080.0,0.32019537]
[1749464799999,1.58590273,107090.0,107080.0,0.22455691]
[1749464800000,1.71274066,107090.0,107080.0,0.22455691]
[1749464800209,1.71274066,107090.0,107080.0,0.18902222]
[1749464800403,1.71274066,107090.0,107080.0,0.38245503]
[1749464800706,1.61935666,107090.0,107080.0,0.28926221]
[1749464800907,1.61935666,107090.0,107080.0,0.18245252]
[1749464801095,1.61935666,107090.0,107080.0,0.09347102]
[1749464801405,1.61935666,107090.0,107080.0,0.45732796]
[1749464801592,1.61935666,107090.0,107080.0,0.45732846]
[1749464801791,1.61935666,107090.0,107080.0,0.33481757]
[1749464801997,1.61935666,107090.0,107080.0,0.33556751]
[1749464802206,1.61935666,107090.0,107080.0,0.27246751]
[1749464802412,1.71274066,107090.0,107080.0,0.1072412]
[1749464802619,1.71274066,107090.0,107080.0,0.3605934]
[1749464802906,1.71274066,107090.0,107080.0,0.25830888]
[1749464803102,1.71274066,107090.0,107080.0,0.16510888]
[1749464803303,1.71274066,107090.0,107080.0,0.21184546]
[1749464803498,1.71274066,107090.0,107080.0,0.40735852]
[1749464803803,1.71274066,107090.0,107080.0,0.24226021]
[1749464804000,1.71274066,107090.0,107080.0,0.20349836]
[1749464804211,1.71274066,107090.0,107080.0,0.09338376]
[1749464804406,1.71274066,107090.0,107080.0,0.33412739]
[1749464804707,1.71274066,107090.0,107080.0,0.33421679]
[1749464805008,0.61401666,107090.0,107080.0,0.24094352]
[1749464805210,1.24009666,107090.0,107080.0,0.70125589]
[1749464805408,1.23969666,107090.0,107080.0,0.65460802]
[1749464805605,0.61401666,107090.0,107080.0,0.70488842]
[1749464805811,1.24017666,107090.0,107080.0,0.61159268]
[1749464806010,0.61401666,107090.0,107080.0,0.56494481]
[1749464806200,1.20005666,107090.0,107080.0,0.51829694]
[1749464806398,1.20005666,107090.0,107080.0,0.47164907]
[1749464806605,1.20005666,107090.0,107080.0,0.37835333]
[1749464806803,1.20005666,107090.0,107080.0,0.33170546]
[1749464807003,1.20005666,107090.0,107080.0,0.28505759]
[1749464807204,1.20005666,107090.0,107080.0,0.38673589]
[1749464807405,1.19965666,107090.0,107080.0,0.34008802]
[1749464807606,1.20005666,107090.0,107080.0,0.29344015]
[1749464807806,1.20005666,107090.0,107080.0,0.29352817]
[1749464808012,1.20005666,107090.0,107080.0,0.27997524]
[1749464808214,0.57401666,107090.0,107080.0,0.23332737]
[1749464808415,1.19957666,107090.0,107080.0,0.43338376]
[1749464808913,1.19957666,107090.0,107080.0,0.39344092]
[1749464808914,0.57361666,107090.0,107080.0,0.39344092]
[1749464809114,0.70789666,107090.0,107080.0,0.39344092]
[1749464809320,1.19925666,107090.0,107080.0,0.39344092]
[1749464809614,1.29264066,107090.0,107080.0,0.16525289]
[1749464809811,1.56835666,107090.0,107080.0,0.19636287]
[1749464810011,1.56835666,107090.0,107080.0,0.56954036]
[1749464810315,1.56835666,107090.0,107080.0,0.47604249]
[1749464810508,1.56835666,107090.0,107080.0,0.38274675]
[1749464810709,1.56835666,107090.0,107080.0,0.43472711]
[1749464811010,1.76545666,107090.0,107080.0,0.27275431]
[1749464811315,1.76545666,107090.0,107080.0,0.35079249]
[1749464811519,1.76545666,107090.0,107080.0,0.30415249]
[1749464811710,1.76545666,107090.0,107080.0,0.26156122]
[1749464812017,1.76945666,107090.0,107080.0,0.27983059]
[1749464812217,1.76945666,107090.0,107080.0,0.36079585]
[1749464812412,1.76945666,107090.0,107080.0,0.31415134]
[1749464812613,1.76945666,107090.0,107080.0,0.27156343]
[1749464812814,1.77045666,107090.0,107080.0,0.31830268]
[1749464813119,1.77045666,107090.0,107080.0,0.42744036]
[1749464813317,1.68547793,107090.0,107080.0,0.38466202]
[1749464813615,1.87213213,107090.0,107080.0,0.20232552]
[1749464813815,1.87213213,107090.0,107080.0,0.24906477]
[1749464814016,1.87213213,107090.0,107080.0,0.40744036]
[1749464814223,0.5538542,107090.0,107080.0,0.36079585]
[1749464814411,1.30569213,107090.0,107080.0,0.31466585]
[1749464814611,1.30569213,107090.0,107080.0,0.31872245]
[1749464814612,1.30609213,107090.0,107080.0,0.31872245]
[1749464814812,1.30609213,107090.0,107080.0,0.70242245]
[1749464815419,0.68069213,107090.0,107080.0,0.70242245]
[1749464815721,1.30613213,107090.0,107080.0,0.70242245]
[1749464816111,0.68069213,107090.0,107080.0,0.70242245]
[1749464816311,1.30597213,107090.0,107080.0,0.70242245]
[1749464816714,1.1789742,107090.0,107080.0,0.70242245]
[1749464816912,1.1785742,107090.0,107080.0,0.70242245]
[1749464817217,1.1789742,107090.0,107080.0,0.70242245]
[1749464817521,0.6314,107090.0,107080.0,0.96918533]
[1749464817724,0.97748151,107090.0,107080.0,0.8423474]
[1749464818020,0.96615056,107090.0,107080.0,1.2285472]
[1749464818209,0.96655056,107090.0,107080.0,1.2285472]
[1749464819117,0.96755056,107090.0,107080.0,1.2285472]
[1749464819723,0.96955056,107090.0,107080.0,1.2285472]
[1749464820122,0.97912726,107090.0,107080.0,0.9423474]
[1749464820313,0.93912726,107090.0,107080.0,0.9423474]
[1749464821424,0.91790769,107090.0,107080.0,0.9423474]
[1749464821826,0.0034,107090.0,107080.0,1.06918533]
[1749464822016,0.13536752,107090.0,107080.0,1.88559184]
[1749464822223,0.98768752,107090.0,107080.0,1.75875391]
[1749464823117,0.98768752,107090.0,107080.0,1.38669488]
[1749464823423,0.98692,107090.0,107080.0,1.38769488]
[1749464824025,0.98692,107090.0,107080.0,1.67427027]
[1749464825122,0.98692,107090.0,107080.0,1.58088627]
[1749464825429,1.30041223,107090.0,107080.0,1.17685733]
[1749464825727,1.30041223,107090.0,107080.0,0.56949554]
[1749464825919,1.67741223,107090.0,107080.0,0.39338376]
[1749464826121,1.67741223,107090.0,107080.0,0.11478549]
[1749464826321,0.1866717,107080.0,107070.0,0.70341354]
[1749464826629,0.67430963,107080.0,107070.0,1.0509572]
[1749464826823,0.67430963,107080.0,107070.0,1.14434096]
[1749464827420,0.67430963,107080.0,107070.0,1.2876723]
[1749464827618,0.67430963,107080.0,107070.0,1.14434096]
[1749464827822,0.85880963,107080.0,107070.0,1.28765951]
[1749464828431,0.81880963,107080.0,107070.0,1.28765951]
[1749464829030,0.81980963,107080.0,107070.0,1.28765951]
[1749464829229,0.6929717,107080.0,107070.0,1.28765951]
[1749464829429,0.81980963,107080.0,107070.0,1.28765951]
[1749464829632,0.81980963,107080.0,107070.0,1.14434096]
[1749464830024,0.81980963,107080.0,107070.0,1.34495059]
[1749464830431,0.80464919,107080.0,107070.0,1.34495059]
[1749464832837,0.62014919,107080.0,107070.0,1.34495059]
[1749464833035,0.48863793,107080.0,107070.0,1.34495059]
[1749464833231,1.11135793,107080.0,107070.0,1.34495059]
[1749464833436,1.11175793,107080.0,107070.0,1.34495059]
[1749464833738,1.11175793,107080.0,107070.0,1.14434096]
[1749464834237,1.29842953,107080.0,107070.0,1.14434096]
[1749464835135,1.11175793,107080.0,107070.0,1.14434096]
[1749464835636,0.44903793,107080.0,107070.0,1.14434096]
[1749464835840,1.25786963,107080.0,107070.0,1.14434096]
[1749464837842,1.07119793,107080.0,107070.0,1.14434096]
[1749464838336,0.94436,107080.0,107070.0,1.14434096]
[1749464838542,1.07119793,107080.0,107070.0,1.14434096]
[1749464839035,1.07119793,107080.0,107070.0,1.14839756]
[1749464840346,1.07119793,107080.0,107070.0,1.43497295]
[1749464840347,1.25786963,107080.0,107070.0,1.43497295]
[1749464840643,1.07119793,107080.0,107070.0,1.43497295]
[1749464841041,1.05603841,107080.0,107070.0,1.43497295]
[1749464841544,1.05603841,107080.0,107070.0,1.5783159]
[1749464841739,1.42671011,107080.0,107070.0,1.29175054]
[1749464842464,1.42671011,107080.0,107070.0,0.73185054]
[1749464842649,1.42671011,107080.0,107070.0,0.72335054]
[1749464842650,1.76651011,107080.0,107070.0,0.72335054]
[1749464843250,1.76358157,107080.0,107070.0,0.72335054]
[1749464843651,1.76358157,107080.0,107070.0,0.72344667]
[1749464844361,1.76358157,107080.0,107070.0,0.58009369]
[1749464845360,1.76358157,107080.0,107070.0,0.78093016]
[1749464846150,1.88749096,107080.0,107070.0,0.77813008]
[1749464846354,1.88749096,107080.0,107070.0,0.73432008]
[1749464846554,1.88749096,107080.0,107070.0,0.72871763]
[1749464846762,1.88749096,107080.0,107070.0,0.70013639]
[1749464847065,0.96544048,107080.0,107070.0,0.70013639]
[1749464847268,1.07088048,107080.0,107070.0,0.49926574]
[1749464847461,1.19438987,107080.0,107070.0,0.88796574]
[1749464847765,1.38146157,107080.0,107070.0,0.88796574]
[1749464847968,1.56466157,107080.0,107070.0,0.88796574]
[1749464848261,1.68909096,107080.0,107070.0,0.44793574]
[1749464848466,0.1866891,107070.0,107060.0,0.25563009]
[1749464848664,1.23549849,107070.0,107060.0,0.41442626]
[1749464848966,1.23549849,107070.0,107060.0,0.43339248]
[1749464849464,1.23549849,107070.0,107060.0,0.4334906]
[1749464849763,1.1115891,107070.0,107060.0,0.4334906]
[1749464850068,1.23549849,107070.0,107060.0,0.4334906]
[1749464850370,1.23549849,107070.0,107060.0,0.43169013]
[1749464850568,1.23549849,107070.0,107060.0,0.40329013]
[1749464850770,1.23549849,107070.0,107060.0,0.34157355]
[1749464851068,1.22033572,107070.0,107060.0,0.34157355]
[1749464851266,1.22353,107070.0,107060.0,0.34157355]
[1749464853068,1.22353,107070.0,107060.0,0.33211355]
[1749464853264,1.22353,107070.0,107060.0,0.26909355]
[1749464854065,1.22353,107070.0,107060.0,0.24064355]
[1749464854361,1.22353,107070.0,107060.0,0.4244906]
[1749464854568,1.22353,107070.0,107060.0,0.3635906]
[1749464854771,1.22353,107070.0,107060.0,0.3588506]
[1749464854966,1.22353,107070.0,107060.0,0.64542599]
[1749464855471,1.22353,107070.0,107060.0,0.56814236]
[1749464855665,1.22353,107070.0,107060.0,0.23491397]
[1749464855862,1.22353,107070.0,107060.0,0.28166217]
[1749464856167,1.22353,107070.0,107060.0,0.27107654]
[1749464856367,1.22353,107070.0,107060.0,0.27520114]
[1749464856569,1.22353,107070.0,107060.0,0.35860234]
[1749464856770,1.22353,107070.0,107060.0,0.26530234]
[1749464856971,1.22353,107070.0,107060.0,0.21864934]
[1749464857171,1.22353,107070.0,107060.0,0.4275258]
[1749464857474,1.22353,107070.0,107060.0,0.2409288]
[1749464857774,1.22353,107070.0,107060.0,0.25061]
[1749464857971,1.22353,107070.0,107060.0,0.0934012]
[1749464858171,1.22353,107070.0,107060.0,0.3460012]
[1749464858373,1.22353,107070.0,107060.0,0.46044621]
[1749464858561,1.22353,107070.0,107060.0,0.3605092]
[1749464858767,1.22353,107070.0,107060.0,0.3560504]
[1749464858963,1.22353,107070.0,107060.0,0.49523563]
[1749464859472,1.22353,107070.0,107060.0,0.41459343]
[1749464859672,1.22353,107070.0,107060.0,0.3600578]
[1749464859974,1.22353,107070.0,107060.0,0.46549686]
[1749464860175,1.22353,107070.0,107060.0,0.43837908]
[1749464860777,1.83733,107070.0,107060.0,0.37754002]
[1749464861273,1.83773,107070.0,107060.0,0.37754002]
[1749464861868,1.83733,107070.0,107060.0,0.37754002]
[1749464862065,1.83773,107070.0,107060.0,0.37754002]
[1749464862665,0.0466847,107050.0,107030.0,0.64078673]
[1749464862869,2.07304507,107040.0,107030.0,1.12047539]
[1749464863062,2.05787996,107040.0,107030.0,1.35372203]
[1749464863273,2.05787996,107040.0,107030.0,1.06714664]
[1749464863670,2.02487996,107040.0,107030.0,1.06724634]
[1749464864479,2.02487996,107040.0,107030.0,0.97224634]
[1749464864678,1.99271163,107040.0,107030.0,1.25882173]
[1749464864867,1.86560796,107040.0,107030.0,1.25782173]
[1749464865073,1.99271163,107040.0,107030.0,1.25782173]
[1749464865268,1.99271163,107040.0,107030.0,0.68392173]
[1749464865478,2.38641163,107040.0,107030.0,0.2535009]
[1749464867474,2.72983563,107040.0,107030.0,0.2535009]
[1749464867680,2.38741163,107040.0,107030.0,0.2535009]
[1749464867872,2.26030796,107040.0,107030.0,0.2535009]
[1749464868067,2.38841163,107040.0,107030.0,0.2535009]
[1749464869373,2.38849443,107040.0,107030.0,0.2535009]
[1749464869573,2.38849443,107040.0,107030.0,0.2575575]
[1749464870485,2.48231843,107040.0,107030.0,0.2575575]
[1749464871284,2.60327718,107040.0,107030.0,0.2575575]
[1749464872782,1.93007076,107040.0,107030.0,0.2575575]
[1749464872987,2.66902197,107040.0,107030.0,0.2575575]
[1749464873170,2.79305318,107040.0,107030.0,0.2575575]
[1749464873481,2.51005318,107040.0,107030.0,0.2575575]
[1749464873682,2.51045318,107040.0,107030.0,0.2575575]
[1749464875487,2.57584318,107040.0,107030.0,0.2575575]
[1749464877979,2.32778076,107040.0,107030.0,0.2575575]
[1749464878177,2.57584318,107040.0,107030.0,0.2575575]
[1749464878582,2.85844318,107040.0,107030.0,0.2575575]
[1749464878781,2.85780318,107040.0,107030.0,0.2575575]
[1749464878983,2.85740318,107040.0,107030.0,0.6468575]
[1749464879276,2.85792318,107040.0,107030.0,0.6468575]
[1749464879881,2.85752318,107040.0,107030.0,0.6468575]
[1749464880279,2.24352318,107040.0,107030.0,0.6468575]
[1749464880480,1.5865931,107040.0,107030.0,0.6468575]
[1749464880781,2.32466431,107040.0,107030.0,0.6468575]
[1749464880982,2.32426431,107040.0,107030.0,0.6468575]
[1749464881184,2.32466431,107040.0,107030.0,0.6468575]
[1749464881585,2.2006331,107040.0,107030.0,0.6468575]
[1749464881784,2.32466431,107040.0,107030.0,0.6468575]
[1749464882084,2.04234431,107040.0,107030.0,0.6468575]
[1749464882289,1.9181931,107040.0,107030.0,0.6468575]
[1749464882491,2.04182431,107040.0,107030.0,0.6468575]
[1749464882690,2.04222431,107040.0,107030.0,0.6468575]
[1749464882989,2.04222431,107040.0,107030.0,0.84780321]
[1749464883190,0.9827528,107040.0,107030.0,0.84780321]
[1749464883489,0.6205528,107040.0,107030.0,1.11251975]
[1749464883792,1.4649928,107040.0,107030.0,1.08848854]
[1749464883994,0.9817528,107040.0,107030.0,1.08848854]
[1749464884190,0.9817528,107040.0,107030.0,1.32989039]
[1749464884385,0.12968,107040.0,107030.0,1.74081097]
[1749464884687,0.43188518,107040.0,107030.0,1.74081097]
[1749464885081,0.43188518,107040.0,107030.0,1.4539216]
[1749464885691,0.43188518,107040.0,107030.0,1.8167216]
[1749464885889,0.61272,107040.0,107030.0,1.8167216]
[1749464886088,0.12968,107040.0,107030.0,1.8167216]
[1749464886394,0.50856016,107040.0,107030.0,1.8177216]
[1749464886984,0.50856016,107040.0,107030.0,2.18978063]
[1749464887179,0.50856016,107040.0,107030.0,2.19078063]
[1749464887785,0.50856016,107040.0,107030.0,2.06674942]
[1749464887991,0.50856016,107040.0,107030.0,1.8187216]
[1749464888686,0.0004,107040.0,107030.0,1.8187216]